[Event "DVM U14 2021"]
[Site "Willingen"]
[Date "2022.08.13"]
[Round "2"]
[White "Le, Dinh An"]
[Black "Marcziter, Alex"]
[Result "1/2-1/2"]
[ECO "A90"]
[WhiteElo "1470"]
[BlackElo "1466"]
[Annotator "NA RC COMBH"]
[PlyCount "66"]
[EventDate "2022.08.12"]
[EventType "team-tourn"]
[EventRounds "7"]
[EventCountry "GER"]
[SourceTitle "playchess.com"]
[Source "ChessBase"]
[SourceQuality "1"]
[TimeControl "40/5400+30:1800+30"]

1. d4 {[%emt 0:00:43]} f5 {[%emt 0:00:00]} 2. Nf3 {[%emt 0:00:39]} Nf6 {[%emt 0:00:11]} 3. g3 {[%emt 0:01:25]} e6 {[%emt 0:00:31]} 4. Bg2 {[%emt 0:01:33]} c6 {[%emt 0:00:22]} 5. O-O {[%emt 0:01:07]} d5 {[%emt 0:00:43]} 6. c4 {[%emt 0:02:26]} Bd6 {[%emt 0:01:22]} 7. Nc3 {[%emt 0:01:44]} O-O {[%emt 0:01:25]} 8. a3 {[%emt 0:03:27]} Ne4 {[%emt 0:01:50]} 9. Qc2 {[%emt 0:03:40]} Nd7 {[%emt 0:02:00]} 10. b4 {[%emt 0:02:37]} Ndf6 {[%emt 0:01:49]} 11. c5 {[%emt 0:01:09]} Bc7 {[%emt 0:02:30]} 12. Rd1 {[%emt 0:05:11]} Ng4 {[%emt 0:00:50]} 13. Rf1 {[%emt 0:04:27]} Ngf6 {[%emt 0:01:51]} 14. h3 {[%emt 0:03:30]} Qe8 {[%emt 0:01:57]} 15. Rb1 {[%emt 0:06:44]} Qg6 {[%emt 0:01:46]} 16. Nh4 {[%emt 0:01:39]} Qh5 {[%emt 0:00:58]} 17. Bf3 {[%emt 0:01:05]} Qe8 {[%emt 0:11:58]} 18. Ng2 {[%emt 0:05:51]} Kh8 {[%emt 0:01:17]} 19. a4 {[%emt 0:01:26]} Rg8 {[%emt 0:01:20]} 20. h4 {[%emt 0:05:37]} g5 {[%emt 0:01:02]} 21. Bxe4 {[%emt 0:07:11]} gxh4 {[%emt 0:00:23]} 22. Bf3 {[%emt 0:00:44]} hxg3 {[%emt 0:01:13]} 23. Bf4 {[%emt 0:00:46]} gxf2+ {[%emt 0:00:19]} 24. Kxf2 {[%emt 0:01:45]} Rxg2+ {[%emt 0:04:10]} 25. Kxg2 {[%emt 0:01:03]} Bxf4 {[%emt 0:01:49]} 26. Kf2 {[%emt 0:04:57]} Ne4+ {[%emt 0:03:11]} 27. Bxe4 {[%emt 0:01:17]} fxe4 {[%emt 0:02:35]} 28. Ke1 {[%emt 0:02:46]} e5 {[%emt 0:05:42]} 29. Nd1 {[%emt 0:01:57]} Bg3+ {[%emt 0:01:35]} 30. Kd2 {[%emt 0:01:37]} exd4 {[%emt 0:03:21]} 31. Rb3 {[%emt 0:06:07]} Be5 {[%emt 0:01:06]} 32. Kc1 {[%emt 0:03:10]} Be6 {[%emt 0:02:33]} 33. Qd2 {[%emt 0:01:29]} Qg6 {[%emt 0:02:33]} 1/2-1/2

[Event "DVM U14 2021"]
[Site "Willingen"]
[Date "2022.08.13"]
[Round "2"]
[White "Wedekind, Ferdinand"]
[Black "Vollbehr, Bjarne"]
[Result "0-1"]
[ECO "A42"]
[WhiteElo "1446"]
[BlackElo "1654"]
[Annotator "NA RC COMBH"]
[PlyCount "52"]
[EventDate "2022.08.12"]
[EventType "team-tourn"]
[EventRounds "7"]
[EventCountry "GER"]
[SourceTitle "playchess.com"]
[Source "ChessBase"]
[SourceQuality "1"]
[TimeControl "40/5400+30:1800+30"]

1. e4 {[%emt 0:00:01]} g6 {[%emt 0:00:08]} 2. d4 {[%emt 0:00:08]} Bg7 {[%emt 0:00:04]} 3. c4 {[%emt 0:00:13]} d6 {[%emt 0:00:35]} 4. Nc3 {[%emt 0:00:33]} Nc6 {[%emt 0:00:39]} 5. Nf3 {[%emt 0:00:27]} e5 {[%emt 0:00:25]} 6. Be3 {[%emt 0:01:42]} Bg4 {[%emt 0:00:33]} 7. d5 {[%emt 0:03:52]} Nce7 {[%emt 0:01:27]} 8. h3 {[%emt 0:02:53]} Bd7 {[%emt 0:04:08]} 9. Be2 {[%emt 0:02:07]} f5 {[%emt 0:00:16]} 10. Qc2 {[%emt 0:09:22]} Nf6 {[%emt 0:04:45]} 11. O-O {[%emt 0:04:09]} f4 {[%emt 0:00:26]} 12. Bd2 {[%emt 0:00:59]} h6 {[%emt 0:01:01]} 13. Bd3 {[%emt 0:17:34]} g5 {[%emt 0:05:46]} 14. Ne1 {[%emt 0:11:31]} h5 {[%emt 0:01:42]} 15. Qc1 {[%emt 0:03:17]} Ng6 {[%emt 0:00:56]} 16. Nc2 {[%emt 0:04:02]} g4 {[%emt 0:00:30]} 17. hxg4 {[%emt 0:04:52]} hxg4 {[%emt 0:00:16]} 18. f3 {[%emt 0:04:55]} g3 {[%emt 0:00:57]} 19. Re1 {[%emt 0:00:14]} Rh2 {[%emt 0:00:48]} 20. Kf1 {[%emt 0:00:34]} Nh5 {[%emt 0:01:19]} 21. Na3 {[%emt 0:05:24]} Nh4 {[%emt 0:07:19]} 22. Ke2 {[%emt 0:05:15]} Bh3 {[%emt 0:01:10]} 23. Kd1 {[%emt 0:00:09]} Bxg2 {[%emt 0:00:29]} 24. Be2 {[%emt 0:00:38]} Nxf3 {[%emt 0:00:55]} 25. Bxf3 {[%emt 0:01:38]} Bxf3+ {[%emt 0:00:12]} 26. Kc2 {[%emt 0:00:16]} g2 {[%emt 0:01:27]} 0-1

[Event "DVM U14 2021"]
[Site "Willingen"]
[Date "2022.08.13"]
[Round "2"]
[White "Schaudienst, Arvid"]
[Black "Tran, Anh Duc Kevin"]
[Result "1-0"]
[ECO "B13"]
[WhiteElo "1431"]
[BlackElo "1398"]
[Annotator "NA RC COMBH"]
[PlyCount "67"]
[EventDate "2022.08.12"]
[EventType "team-tourn"]
[EventRounds "7"]
[EventCountry "GER"]
[SourceTitle "playchess.com"]
[Source "ChessBase"]
[SourceQuality "1"]
[TimeControl "40/5400+30:1800+30"]

1. e4 {[%emt 0:00:32]} c6 {[%emt 0:00:00]} 2. d4 {[%emt 0:00:05]} d5 {[%emt 0:00:00]} 3. exd5 {[%emt 0:00:23]} cxd5 {[%emt 0:00:03]} 4. Bd3 {[%emt 0:00:52]} Nc6 {[%emt 0:00:25]} 5. Nf3 {[%emt 0:01:20]} Bg4 {[%emt 0:00:11]} 6. c3 {[%emt 0:00:32]} Nf6 {[%emt 0:00:28]} 7. O-O {[%emt 0:00:48]} e6 {[%emt 0:00:38]} 8. Bf4 {[%emt 0:01:43]} Bd6 {[%emt 0:01:02]} 9. Bxd6 {[%emt 0:00:20]} Qxd6 {[%emt 0:00:28]} 10. Nbd2 {[%emt 0:03:10]} O-O {[%emt 0:00:45]} 11. Re1 {[%emt 0:03:16]} Nd7 {[%emt 0:01:21]} 12. Bxh7+ {[%emt 0:08:16]} Kh8 {[%emt 0:02:09]} 13. Qc2 {[%emt 0:10:02]} Bxf3 {[%emt 0:00:25]} 14. Nxf3 {[%emt 0:04:47]} Rae8 {[%emt 0:02:36]} 15. Ng5 {[%emt 0:01:12]} f5 {[%emt 0:03:01]} 16. Re3 {[%emt 0:05:30]} g6 {[%emt 0:02:16]} 17. Bxg6 {[%emt 0:00:40]} Re7 {[%emt 0:01:19]} 18. Rae1 {[%emt 0:02:46]} Rf6 {[%emt 0:05:41]} 19. Bf7 {[%emt 0:04:30]} Rfxf7 {[%emt 0:01:43]} 20. Nxf7+ {[%emt 0:00:06]} Rxf7 {[%emt 0:00:48]} 21. Rxe6 {[%emt 0:01:31]} Qc7 {[%emt 0:04:18]} 22. Qe2 {[%emt 0:02:16]} Nf6 {[%emt 0:02:49]} 23. Qf3 {[%emt 0:03:36]} Ng4 {[%emt 0:02:45]} 24. Re8+ {[%emt 0:00:43]} Kg7 {[%emt 0:01:10]} 25. Qh3 {[%emt 0:02:51]} Nh6 {[%emt 0:05:10]} 26. R1e6 {[%emt 0:02:00]} Qf4 {[%emt 0:03:41]} 27. g3 {[%emt 0:00:30]} Qc1+ {[%emt 0:00:12]} 28. Kg2 {[%emt 0:01:29]} Na5 {[%emt 0:02:31]} 29. Qh5 {[%emt 0:08:09]} Rf6 {[%emt 0:05:15]} 30. R6e7+ {[%emt 0:00:29]} Rf7 {[%emt 0:00:57]} 31. Rxf7+ {[%emt 0:01:02]} Nxf7 {[%emt 0:00:16]} 32. Re7 {[%emt 0:01:00]} Kf6 33. Rxf7+ {[%emt 0:00:30]} Ke6 {[%emt 0:02:18]} 34. Qg6# {[%emt 0:00:03]} 1-0

[Event "DVM U14 2021"]
[Site "Willingen"]
[Date "2022.08.13"]
[Round "2"]
[White "Gloria, Fabian"]
[Black "Lippmann, Niklas A."]
[Result "1/2-1/2"]
[ECO "C54"]
[WhiteElo "1420"]
[BlackElo "1263"]
[Annotator "NA RC COMBH"]
[PlyCount "124"]
[EventDate "2022.08.12"]
[EventType "team-tourn"]
[EventRounds "7"]
[EventCountry "GER"]
[SourceTitle "playchess.com"]
[Source "ChessBase"]
[SourceQuality "1"]
[TimeControl "40/5400+30:1800+30"]

1. e4 {[%emt 0:00:02]} e5 {[%emt 0:00:05]} 2. Nf3 {[%emt 0:00:06]} Nc6 {[%emt 0:00:08]} 3. Bc4 {[%emt 0:00:05]} Bc5 {[%emt 0:00:05]} 4. O-O {[%emt 0:00:20]} Nf6 {[%emt 0:00:04]} 5. Re1 {[%emt 0:00:04]} O-O {[%emt 0:00:29]} 6. c3 {[%emt 0:00:19]} d6 {[%emt 0:01:22]} 7. d3 {[%emt 0:00:45]} h6 {[%emt 0:01:09]} 8. Be3 {[%emt 0:01:22]} Bb6 {[%emt 0:00:23]} 9. Nbd2 {[%emt 0:00:42]} Bg4 {[%emt 0:02:43]} 10. Qc2 {[%emt 0:02:08]} Re8 {[%emt 0:05:13]} 11. h3 {[%emt 0:03:11]} Bh5 {[%emt 0:00:59]} 12. b4 {[%emt 0:04:46]} a6 {[%emt 0:01:59]} 13. d4 {[%emt 0:11:49]} Bxf3 {[%emt 0:04:19]} 14. Nxf3 {[%emt 0:01:32]} exd4 {[%emt 0:01:52]} 15. Bxd4 {[%emt 0:00:20]} Bxd4 {[%emt 0:01:06]} 16. Nxd4 {[%emt 0:00:15]} Ne5 {[%emt 0:00:45]} 17. Bb3 {[%emt 0:03:02]} c5 {[%emt 0:00:36]} 18. bxc5 {[%emt 0:01:51]} dxc5 {[%emt 0:00:09]} 19. f4 {[%emt 0:05:05]} cxd4 {[%emt 0:01:32]} 20. fxe5 {[%emt 0:00:53]} d3 {[%emt 0:01:17]} 21. Qd2 {[%emt 0:01:26]} Rxe5 {[%emt 0:00:59]} 22. Qf4 {[%emt 0:01:49]} Qc7 {[%emt 0:02:03]} 23. c4 {[%emt 0:04:06]} Rae8 {[%emt 0:00:55]} 24. Rad1 {[%emt 0:01:08]} Qc5+ {[%emt 0:00:24]} 25. Kh1 {[%emt 0:01:09]} Rxe4 {[%emt 0:00:51]} 26. Rxe4 {[%emt 0:01:18]} Rxe4 {[%emt 0:00:09]} 27. Qf1 {[%emt 0:02:15]} b5 {[%emt 0:03:57]} 28. cxb5 {[%emt 0:01:11]} axb5 {[%emt 0:01:14]} 29. Rxd3 {[%emt 0:02:04]} Qh5 {[%emt 0:04:12]} 30. Rf3 {[%emt 0:01:49]} Qh4 {[%emt 0:01:22]} 31. Qxb5 {[%emt 0:05:17]} Re1+ {[%emt 0:02:21]} 32. Rf1 {[%emt 0:00:35]} Qf2 {[%emt 0:01:33]} 33. Bc4 {[%emt 0:01:05]} Rxf1+ {[%emt 0:01:22]} 34. Bxf1 {[%emt 0:00:13]} Qxa2 {[%emt 0:00:34]} 35. Qb8+ {[%emt 0:04:14]} Kh7 {[%emt 0:00:17]} 36. Bd3+ {[%emt 0:00:34]} g6 {[%emt 0:00:11]} 37. Qd6 {[%emt 0:00:32]} Qe6 {[%emt 0:01:36]} 38. Qg3 {[%emt 0:04:16]} Kg7 {[%emt 0:03:45]} 39. Kh2 {[%emt 0:05:15]} Nh5 {[%emt 0:01:51]} 40. Qf3 {[%emt 0:03:43]} Qe5+ {[%emt 0:02:08]} 41. g3 {[%emt 0:31:50]} Nf6 {[%emt 0:32:11]} 42. Qe2 {[%emt 0:04:03]} Qxe2+ {[%emt 0:00:34]} 43. Bxe2 {[%emt 0:00:07]} Ne4 {[%emt 0:00:30]} 44. Kg2 {[%emt 0:02:06]} f5 {[%emt 0:01:00]} 45. g4 {[%emt 0:01:47]} Kf6 {[%emt 0:00:38]} 46. Kf3 {[%emt 0:02:18]} Ng5+ {[%emt 0:01:19]} 47. Kg3 {[%emt 0:01:25]} fxg4 {[%emt 0:00:14]} 48. hxg4 {[%emt 0:00:34]} Ke5 {[%emt 0:00:09]} 49. Bd3 {[%emt 0:05:19]} Kf6 {[%emt 0:00:12]} 50. Kf4 {[%emt 0:04:18]} Ne6+ {[%emt 0:00:37]} 51. Kg3 {[%emt 0:01:47]} Kg5 {[%emt 0:00:07]} 52. Be2 {[%emt 0:00:44]} Nf4 {[%emt 0:00:38]} 53. Bd1 {[%emt 0:05:38]} Nd5 {[%emt 0:00:26]} 54. Be2 {[%emt 0:01:13]} Ne3 {[%emt 0:00:19]} 55. Bf3 {[%emt 0:01:31]} Nxg4 {[%emt 0:01:06]} 56. Bxg4 {[%emt 0:00:11]} h5 {[%emt 0:00:08]} 57. Bf3 {[%emt 0:00:43]} h4+ {[%emt 0:01:03]} 58. Kh3 {[%emt 0:00:49]} Kf4 {[%emt 0:00:08]} 59. Bg4 {[%emt 0:00:11]} g5 {[%emt 0:00:08]} 60. Be6 {[%emt 0:00:28]} Kf3 {[%emt 0:00:39]} 61. Bg4+ {[%emt 0:00:17]} Kf2 {[%emt 0:00:43]} 62. Be6 {[%emt 0:00:17]} Kf3 {[%emt 0:00:42]} 1/2-1/2

[Event "DVM U14 2021"]
[Site "Willingen"]
[Date "2022.08.13"]
[Round "2"]
[White "Bade, Deniz"]
[Black "Aravindan, Midhulan"]
[Result "0-1"]
[ECO "C02"]
[WhiteElo "1414"]
[BlackElo "1642"]
[Annotator "NA RC COMBH"]
[PlyCount "76"]
[EventDate "2022.08.12"]
[EventType "team-tourn"]
[EventRounds "7"]
[EventCountry "GER"]
[SourceTitle "playchess.com"]
[Source "ChessBase"]
[SourceQuality "1"]
[TimeControl "40/5400+30:1800+30"]

1. e4 {[%emt 0:00:18]} e6 {[%emt 0:00:00]} 2. d4 {[%emt 0:00:04]} d5 {[%emt 0:00:00]} 3. e5 {[%emt 0:00:06]} c5 {[%emt 0:00:00]} 4. c3 {[%emt 0:00:06]} Qb6 {[%emt 0:00:00]} 5. Nf3 {[%emt 0:01:09]} Nc6 {[%emt 0:00:05]} 6. Bd3 {[%emt 0:00:06]} Bd7 {[%emt 0:00:06]} 7. dxc5 {[%emt 0:00:07]} Bxc5 {[%emt 0:00:34]} 8. O-O {[%emt 0:01:07]} Nge7 {[%emt 0:00:26]} 9. b4 {[%emt 0:01:11]} Nxb4 {[%emt 0:01:21]} 10. cxb4 {[%emt 0:00:41]} Bd4 {[%emt 0:00:54]} 11. Nxd4 {[%emt 0:00:08]} Qxd4 {[%emt 0:02:36]} 12. Qb3 {[%emt 0:08:04]} Qxe5 {[%emt 0:03:36]} 13. Bb2 {[%emt 0:03:00]} Qg5 {[%emt 0:16:39]} 14. Na3 {[%emt 0:06:53]} Ng6 {[%emt 0:06:21]} 15. Bb5 {[%emt 0:14:01]} Bxb5 {[%emt 0:00:07]} 16. Nxb5 {[%emt 0:01:01]} O-O {[%emt 0:10:30]} 17. Qe3 {[%emt 0:05:45]} Qg4 {[%emt 0:04:16]} 18. a3 {[%emt 0:07:37]} Rac8 {[%emt 0:04:13]} 19. h3 {[%emt 0:07:34]} Qh5 {[%emt 0:04:58]} 20. Rac1 {[%emt 0:07:22]} e5 {[%emt 0:08:55]} 21. Nd6 {[%emt 0:05:50]} Rc6 {[%emt 0:03:45]} 22. Rxc6 {[%emt 0:00:06]} bxc6 {[%emt 0:08:07]} 23. Rc1 {[%emt 0:13:47]} Nf4 {[%emt 0:08:33]} 24. Rxc6 {[%emt 0:01:10]} Qd1+ {[%emt 0:00:41]} 25. Kh2 {[%emt 0:02:06]} Qf1 {[%emt 0:03:48]} 26. Qf3 {[%emt 0:01:36]} Ne2 {[%emt 0:01:27]} 27. h4 {[%emt 0:01:07]} Qg1+ {[%emt 0:00:08]} 28. Kh3 {[%emt 0:10:41]} Qh1+ {[%emt 0:00:07]} 29. Kg4 {[%emt 0:00:35]} h5+ {[%emt 0:09:43]} 30. Kg5 {[%emt 0:00:39]} f6+ {[%emt 0:00:45]} 31. Kf5 {[%emt 0:00:33]} Qb1+ {[%emt 0:00:53]} 32. Ke6 {[%emt 0:00:14]} Nf4+ {[%emt 0:01:40]} 33. Ke7 {[%emt 0:01:06]} Qxb2 {[%emt 0:00:37]} 34. g3 {[%emt 0:00:13]} Ng6+ {[%emt 0:00:45]} 35. Kd7 {[%emt 0:00:06]} e4 {[%emt 0:00:33]} 36. Qxh5 {[%emt 0:00:07]} Ne5+ {[%emt 0:00:34]} 37. Ke6 {[%emt 0:00:32]} Nxc6 {[%emt 0:00:40]} 38. Kd7 {[%emt 0:00:33]} Qe5 {[%emt 0:01:01]} 0-1

[Event "DVM U14 2021"]
[Site "Willingen"]
[Date "2022.08.13"]
[Round "2"]
[White "Leonard, Etienne Peter"]
[Black "Sun, Christopher"]
[Result "1/2-1/2"]
[ECO "D78"]
[WhiteElo "1373"]
[BlackElo "1091"]
[Annotator "NA RC COMBH"]
[PlyCount "83"]
[EventDate "2022.08.12"]
[EventType "team-tourn"]
[EventRounds "7"]
[EventCountry "GER"]
[SourceTitle "playchess.com"]
[Source "ChessBase"]
[SourceQuality "1"]
[TimeControl "40/5400+30:1800+30"]

1. d4 {[%emt 0:00:10]} d5 {[%emt 0:00:05]} 2. c4 {[%emt 0:00:19]} c6 {[%emt 0:00:13]} 3. Nf3 {[%emt 0:00:22]} Nf6 {[%emt 0:00:17]} 4. g3 {[%emt 0:00:17]} g6 {[%emt 0:00:19]} 5. Bg2 {[%emt 0:00:07]} Bg7 {[%emt 0:00:12]} 6. O-O {[%emt 0:00:17]} O-O {[%emt 0:00:10]} 7. b3 {[%emt 0:00:13]} Bf5 {[%emt 0:02:07]} 8. Nc3 {[%emt 0:00:15]} Nbd7 {[%emt 0:00:32]} 9. Bf4 {[%emt 0:00:30]} Nb6 {[%emt 0:02:11]} 10. c5 {[%emt 0:00:54]} Nbd7 {[%emt 0:00:27]} 11. Qd2 {[%emt 0:02:33]} b6 {[%emt 0:00:59]} 12. b4 {[%emt 0:00:32]} b5 {[%emt 0:00:47]} 13. a3 {[%emt 0:02:16]} a6 {[%emt 0:03:31]} 14. Rfe1 {[%emt 0:01:23]} Re8 {[%emt 0:00:15]} 15. Rad1 {[%emt 0:02:43]} Nf8 {[%emt 0:00:36]} 16. Qc1 {[%emt 0:02:15]} Ne6 {[%emt 0:00:35]} 17. Bd2 {[%emt 0:00:47]} Nd7 {[%emt 0:02:59]} 18. Bh6 {[%emt 0:01:06]} Nf6 {[%emt 0:02:39]} 19. Bxg7 {[%emt 0:00:16]} Nxg7 {[%emt 0:00:42]} 20. Ne5 {[%emt 0:00:30]} Qc8 {[%emt 0:01:23]} 21. e3 {[%emt 0:01:45]} Ng4 {[%emt 0:00:45]} 22. Nf3 {[%emt 0:01:03]} Nf6 {[%emt 0:00:54]} 23. Qd2 {[%emt 0:01:16]} Bg4 {[%emt 0:01:01]} 24. Ne2 {[%emt 0:00:42]} Ne4 {[%emt 0:01:23]} 25. Qc2 {[%emt 0:00:30]} Bf5 {[%emt 0:01:36]} 26. Qb2 {[%emt 0:01:45]} Bh3 {[%emt 0:05:06]} 27. Bh1 {[%emt 0:00:21]} Nh5 {[%emt 0:02:56]} 28. Nc3 {[%emt 0:00:19]} Nhf6 {[%emt 0:00:50]} 29. Bg2 {[%emt 0:02:41]} Nxc3 {[%emt 0:01:08]} 30. Qxc3 {[%emt 0:00:12]} Ne4 {[%emt 0:00:38]} 31. Qb2 {[%emt 0:00:20]} Bxg2 {[%emt 0:01:30]} 32. Kxg2 {[%emt 0:00:09]} Qc7 {[%emt 0:01:21]} 33. Nd2 {[%emt 0:01:02]} Nxd2 {[%emt 0:00:37]} 34. Qxd2 {[%emt 0:00:21]} e5 {[%emt 0:00:58]} 35. Kg1 {[%emt 0:00:47]} e4 {[%emt 0:00:26]} 36. Qe2 {[%emt 0:02:23]} a5 {[%emt 0:01:14]} 37. Ra1 {[%emt 0:00:15]} axb4 {[%emt 0:00:53]} 38. axb4 {[%emt 0:00:21]} f5 {[%emt 0:02:06]} 39. f3 {[%emt 0:01:09]} Qb7 {[%emt 0:03:02]} 40. Kg2 {[%emt 0:00:33]} Rxa1 {[%emt 0:00:29]} 41. Rxa1 {[%emt 0:30:14]} Ra8 {[%emt 0:30:32]} 42. Qb2 {[%emt 0:00:11]} 1/2-1/2

[Event "DVM U14 2021"]
[Site "Willingen"]
[Date "2022.08.13"]
[Round "2"]
[White "Klein, Maxim"]
[Black "Yue, Qihang"]
[Result "*"]
[ECO "B13"]
[WhiteElo "1323"]
[BlackElo "1401"]
[Annotator "NA RC COMBH"]
[PlyCount "92"]
[EventDate "2022.08.12"]
[EventType "team-tourn"]
[EventRounds "7"]
[EventCountry "GER"]
[SourceTitle "playchess.com"]
[Source "ChessBase"]
[SourceQuality "1"]
[TimeControl "40/5400+30:1800+30"]

1. d4 {[%emt 0:00:07]} Nf6 {[%emt 0:00:00]} 2. Nf3 {[%emt 0:00:20]} e6 {[%emt 0:00:06]} 3. Bf4 {[%emt 0:00:28]} d5 {[%emt 0:00:23]} 4. e3 {[%emt 0:00:17]} c5 {[%emt 0:00:47]} 5. c3 {[%emt 0:00:59]} Nc6 {[%emt 0:00:44]} 6. Bd3 {[%emt 0:00:54]} Bd6 {[%emt 0:00:13]} 7. Bg3 {[%emt 0:00:19]} O-O {[%emt 0:00:58]} 8. Nbd2 {[%emt 0:00:26]} cxd4 {[%emt 0:00:33]} 9. exd4 {[%emt 0:00:22]} Re8 {[%emt 0:01:32]} 10. O-O {[%emt 0:00:15]} e5 {[%emt 0:00:37]} 11. dxe5 {[%emt 0:00:18]} Nxe5 {[%emt 0:00:24]} 12. Nxe5 {[%emt 0:00:08]} Bxe5 {[%emt 0:00:57]} 13. Qc2 {[%emt 0:02:09]} Bg4 {[%emt 0:02:01]} 14. Rfe1 {[%emt 0:04:28]} Qc7 {[%emt 0:02:46]} 15. Nb3 {[%emt 0:01:29]} Bxg3 {[%emt 0:00:39]} 16. hxg3 {[%emt 0:02:55]} Re7 {[%emt 0:07:46]} 17. Nd4 {[%emt 0:01:55]} Rae8 {[%emt 0:00:43]} 18. Rxe7 {[%emt 0:01:21]} Qxe7 {[%emt 0:02:43]} 19. Nf5 {[%emt 0:03:07]} Qd7 {[%emt 0:01:02]} 20. Ne3 {[%emt 0:02:19]} Bh5 {[%emt 0:01:32]} 21. a4 {[%emt 0:00:41]} Bg6 {[%emt 0:01:27]} 22. Bxg6 {[%emt 0:00:17]} hxg6 {[%emt 0:00:50]} 23. Rd1 {[%emt 0:13:00]} Re4 {[%emt 0:01:48]} 24. Nxd5 {[%emt 0:00:57]} Qxa4 {[%emt 0:01:58]} 25. Nxf6+ {[%emt 0:00:14]} gxf6 {[%emt 0:12:13]} 26. b3 {[%emt 0:01:51]} Qe8 {[%emt 0:01:19]} 27. Qd2 {[%emt 0:00:42]} Re2 {[%emt 0:01:47]} 28. Qd4 {[%emt 0:01:17]} Re1+ {[%emt 0:00:41]} 29. Rxe1 {[%emt 0:00:09]} Qxe1+ {[%emt 0:00:03]} 30. Kh2 {[%emt 0:01:22]} Qe5 {[%emt 0:04:03]} 31. Qxe5 {[%emt 0:00:07]} fxe5 {[%emt 0:00:04]} 32. Kh3 {[%emt 0:00:41]} f5 {[%emt 0:01:37]} 33. Kh4 {[%emt 0:03:55]} Kf7 {[%emt 0:00:10]} 34. Kg5 {[%emt 0:01:30]} a5 {[%emt 0:00:15]} 35. c4 {[%emt 0:00:20]} b6 {[%emt 0:10:51]} 36. Kh6 {[%emt 0:01:03]} Kf6 {[%emt 0:00:34]} 37. Kh7 {[%emt 0:05:46]} e4 {[%emt 0:01:43]} 38. Kh6 {[%emt 0:01:00]} g5 {[%emt 0:00:14]} 39. Kh5 {[%emt 0:01:15]} f4 {[%emt 0:13:36]} 40. gxf4 {[%emt 0:01:37]} gxf4 {[%emt 0:00:03]} 41. Kg4 {[%emt 0:31:03]} Ke5 {[%emt 0:31:59]} 42. g3 {[%emt 0:06:41]} f3 {[%emt 0:01:52]} 43. Kh3 {[%emt 0:01:21]} e3 {[%emt 0:01:27]} 44. fxe3 {[%emt 0:00:14]} Ke4 {[%emt 0:01:27]} 45. Kh2 {[%emt 0:00:16]} Kxe3 {[%emt 0:00:11]} 46. Kg1 {[%emt 0:00:08]} Ke2 {[%emt 0:01:40]} *

[Event "DVM U14 2021"]
[Site "Willingen"]
[Date "2022.08.13"]
[Round "2"]
[White "Keck, Johannes"]
[Black "Braeutigam, Katerina"]
[Result "0-1"]
[ECO "B15"]
[WhiteElo "1310"]
[BlackElo "1781"]
[Annotator "NA RC COMBH"]
[PlyCount "40"]
[EventDate "2022.08.12"]
[EventType "team-tourn"]
[EventRounds "7"]
[EventCountry "GER"]
[SourceTitle "playchess.com"]
[Source "ChessBase"]
[SourceQuality "1"]
[TimeControl "40/5400+30:1800+30"]

1. e4 {[%emt 0:01:12]} c6 {[%emt 0:00:02]} 2. Nf3 {[%emt 0:00:23]} d5 {[%emt 0:00:05]} 3. Nc3 {[%emt 0:00:45]} g6 {[%emt 0:00:12]} 4. d4 {[%emt 0:06:51]} Bg7 {[%emt 0:00:13]} 5. Be3 {[%emt 0:05:06]} dxe4 {[%emt 0:00:22]} 6. Nxe4 {[%emt 0:00:12]} Nf6 {[%emt 0:00:09]} 7. Nxf6+ {[%emt 0:02:06]} exf6 {[%emt 0:00:11]} 8. Qd2 {[%emt 0:02:20]} O-O {[%emt 0:03:15]} 9. Be2 {[%emt 0:03:21]} Nd7 {[%emt 0:06:56]} 10. O-O-O {[%emt 0:03:15]} Nb6 {[%emt 0:08:10]} 11. Bh6 {[%emt 0:08:51]} Re8 {[%emt 0:10:15]} 12. Bxg7 {[%emt 0:00:59]} Kxg7 {[%emt 0:00:02]} 13. Rhe1 {[%emt 0:02:33]} Be6 {[%emt 0:04:00]} 14. Kb1 {[%emt 0:00:52]} a5 {[%emt 0:08:53]} 15. h4 {[%emt 0:01:19]} h5 {[%emt 0:09:09]} 16. Nh2 {[%emt 0:06:25]} Qd5 {[%emt 0:06:33]} 17. b3 {[%emt 0:04:38]} Qxg2 {[%emt 0:01:57]} 18. Qf4 {[%emt 0:01:42]} Nd5 {[%emt 0:01:59]} 19. Qg3 {[%emt 0:04:25]} Qxg3 {[%emt 0:00:20]} 20. fxg3 {[%emt 0:00:05]} Nc3+ {[%emt 0:00:39]} 0-1

[Event "DVM U14 2021"]
[Site "Willingen"]
[Date "2022.08.13"]
[Round "2"]
[White "Wegener, Moritz"]
[Black "Vesszö, Aaron"]
[Result "1-0"]
[ECO "A24"]
[WhiteElo "1202"]
[BlackElo "1306"]
[Annotator "NA RC COMBH"]
[PlyCount "82"]
[EventDate "2022.08.12"]
[EventType "team-tourn"]
[EventRounds "7"]
[EventCountry "GER"]
[SourceTitle "playchess.com"]
[Source "ChessBase"]
[SourceQuality "1"]
[TimeControl "40/5400+30:1800+30"]

1. c4 {[%emt 0:15:25]} Nf6 {[%emt 0:00:43]} 2. Nc3 {[%emt 0:00:51]} g6 {[%emt 0:00:22]} 3. g3 {[%emt 0:00:45]} Bg7 {[%emt 0:00:10]} 4. Bg2 {[%emt 0:01:39]} O-O {[%emt 0:00:09]} 5. e4 {[%emt 0:00:30]} d6 {[%emt 0:00:05]} 6. Nge2 {[%emt 0:01:02]} e5 {[%emt 0:01:22]} 7. O-O {[%emt 0:00:57]} Nh5 {[%emt 0:00:38]} 8. d3 {[%emt 0:00:58]} f5 {[%emt 0:00:45]} 9. f4 {[%emt 0:02:10]} exf4 {[%emt 0:05:10]} 10. Nxf4 {[%emt 0:01:04]} Nxf4 {[%emt 0:01:28]} 11. Bxf4 {[%emt 0:00:50]} Bd4+ {[%emt 0:00:31]} 12. Kh1 {[%emt 0:00:42]} Nc6 {[%emt 0:02:34]} 13. Qd2 {[%emt 0:05:52]} Be6 {[%emt 0:19:02]} 14. Bg5 {[%emt 0:03:45]} Bf6 {[%emt 0:00:16]} 15. Bxf6 {[%emt 0:01:29]} Qxf6 {[%emt 0:02:56]} 16. exf5 {[%emt 0:00:50]} gxf5 {[%emt 0:03:12]} 17. Nd5 {[%emt 0:01:59]} Qg7 {[%emt 0:07:27]} 18. Rae1 {[%emt 0:03:57]} Rae8 {[%emt 0:03:25]} 19. Nf4 {[%emt 0:00:38]} Qh6 {[%emt 0:10:00]} 20. Qc3 {[%emt 0:02:35]} Qf6 {[%emt 0:00:25]} 21. Qxf6 {[%emt 0:01:43]} Rxf6 {[%emt 0:01:18]} 22. Nxe6 {[%emt 0:00:06]} Rexe6 {[%emt 0:01:00]} 23. Bd5 {[%emt 0:00:14]} Kf7 {[%emt 0:00:54]} 24. Bxe6+ {[%emt 0:00:22]} Rxe6 {[%emt 0:00:29]} 25. Rxf5+ {[%emt 0:00:32]} Kg6 {[%emt 0:09:09]} 26. Rxe6+ {[%emt 0:01:30]} Kxf5 {[%emt 0:00:16]} 27. Rh6 {[%emt 0:00:48]} Nb4 {[%emt 0:00:43]} 28. Rxh7 {[%emt 0:00:52]} Nxd3 {[%emt 0:00:10]} 29. Rxc7 {[%emt 0:00:14]} Nxb2 {[%emt 0:00:09]} 30. Rxb7 {[%emt 0:00:23]} Nxc4 {[%emt 0:00:35]} 31. Rxa7 {[%emt 0:00:14]} d5 {[%emt 0:01:28]} 32. Kg2 {[%emt 0:00:15]} d4 {[%emt 0:00:08]} 33. Ra4 {[%emt 0:00:10]} Ne3+ {[%emt 0:00:11]} 34. Kf3 {[%emt 0:00:25]} Nc2 {[%emt 0:11:39]} 35. Ra5+ {[%emt 0:03:00]} Ke6 {[%emt 0:00:17]} 36. Rc5 {[%emt 0:00:19]} d3 {[%emt 0:00:17]} 37. Rc3 {[%emt 0:01:16]} Nb4 {[%emt 0:01:07]} 38. a3 {[%emt 0:01:00]} d2 {[%emt 0:03:02]} 39. Ke2 {[%emt 0:00:05]} Nd5 {[%emt 0:00:28]} 40. Kxd2 {[%emt 0:00:11]} Nxc3 {[%emt 0:00:09]} 41. Kxc3 {[%emt 0:30:07]} Kd6 {[%emt 0:30:13]} 1-0